[Event "Late-Titled-Tuesday-Blitz-January-16-2024"]
[Site "Chess.com"]
[Date "2024.01.16"]
[Round "9"]
[White "mishanick"]
[Black "Sebastian"]
[Result "0-1"]
[WhiteElo "3096"]
[BlackElo "3012"]
[TimeControl "180+1"]
[EndTime "15:47:24 PST"]
[Termination "Sebastian won by resignation"]

1. d4 {[%clk 0:03:00.9]} 1... Nf6 {[%clk 0:03:00.2]} 2. c4 {[%clk 0:03:01.1]}
2... e6 {[%clk 0:03:00.7]} 3. Nc3 {[%clk 0:03:01.7]} 3... Bb4 {[%clk 0:03:00.9]}
4. e3 {[%clk 0:03:02.1]} 4... O-O {[%clk 0:03:01]} 5. Bd3 {[%clk 0:03:02.7]}
5... c5 {[%clk 0:03:01.4]} 6. Nf3 {[%clk 0:03:00.6]} 6... d5 {[%clk 0:03:01.2]}
7. O-O {[%clk 0:02:59.9]} 7... cxd4 {[%clk 0:03:00.7]} 8. exd4 {[%clk
0:03:00.3]} 8... dxc4 {[%clk 0:03:01.1]} 9. Bxc4 {[%clk 0:03:01.2]} 9... b6
{[%clk 0:03:01.6]} 10. Qe2 {[%clk 0:03:01]} 10... Bb7 {[%clk 0:03:01.4]} 11. Rd1
{[%clk 0:03:01.6]} 11... h6 {[%clk 0:02:56.7]} 12. Bf4 {[%clk 0:02:59.2]} 12...
Nc6 {[%clk 0:02:51.6]} 13. d5 {[%clk 0:02:46.4]} 13... exd5 {[%clk 0:02:51.1]}
14. Nxd5 {[%clk 0:02:47.3]} 14... Nxd5 {[%clk 0:02:48.7]} 15. Bxd5 {[%clk
0:02:47]} 15... Qf6 {[%clk 0:02:46.8]} 16. Be3 {[%clk 0:02:34.5]} 16... Rfd8
{[%clk 0:02:39.8]} 17. Rac1 {[%clk 0:02:32.2]} 17... Bf8 {[%clk 0:02:08]} 18. b4
{[%clk 0:02:12]} 18... Rd7 {[%clk 0:01:27.2]} 19. b5 {[%clk 0:01:37.1]} 19...
Na5 {[%clk 0:01:26.7]} 20. Bd4 {[%clk 0:01:35.4]} 20... Qf5 {[%clk 0:01:19.1]}
21. Bxb7 {[%clk 0:01:28.2]} 21... Nxb7 {[%clk 0:01:18.4]} 22. Ne5 {[%clk
0:01:23.5]} 22... Re8 {[%clk 0:01:11.3]} 23. g4 {[%clk 0:00:49.8]} 23... Qf4
{[%clk 0:00:55.8]} 24. Qe3 {[%clk 0:00:21.5]} 24... Rxd4 {[%clk 0:00:54.9]} 25.
Qxd4 {[%clk 0:00:21.6]} 25... Qxd4 {[%clk 0:00:45.8]} 26. Rxd4 {[%clk
0:00:21.6]} 26... Rxe5 {[%clk 0:00:46.5]} 27. Rc7 {[%clk 0:00:17.7]} 27... Bc5
{[%clk 0:00:34.3]} 28. Rdd7 {[%clk 0:00:10.6]} 28... Nd6 {[%clk 0:00:32.7]} 29.
a4 {[%clk 0:00:08.6]} 29... Re4 {[%clk 0:00:22.9]} 30. Rxc5 {[%clk 0:00:03.9]}
30... bxc5 {[%clk 0:00:22.2]} 31. Rxd6 {[%clk 0:00:04.6]} 31... Rxg4+ {[%clk
0:00:22.3]} 32. Kf1 {[%clk 0:00:04.4]} 32... Rxa4 {[%clk 0:00:22.9]} 33. Rc6
{[%clk 0:00:03.9]} 33... c4 {[%clk 0:00:21.7]} 34. Ke2 {[%clk 0:00:03.3]} 34...
Rb4 {[%clk 0:00:20.2]} 35. Rc5 {[%clk 0:00:03.7]} 35... Rb3 {[%clk 0:00:16.1]}
36. h4 {[%clk 0:00:03.6]} 36... g6 {[%clk 0:00:15.3]} 37. f4 {[%clk 0:00:02.4]}
37... Kg7 {[%clk 0:00:14.2]} 38. Kd2 {[%clk 0:00:02.9]} 38... Rh3 {[%clk
0:00:08.4]} 39. Rxc4 {[%clk 0:00:03]} 39... Rxh4 {[%clk 0:00:08.6]} 40. Ra4
{[%clk 0:00:03.7]} 40... g5 {[%clk 0:00:08.3]} 41. Rxa7 {[%clk 0:00:04.1]} 41...
Rxf4 {[%clk 0:00:08.6]} 42. Kc3 {[%clk 0:00:04.8]} 42... Rf1 {[%clk 0:00:08]}
43. Ra4 {[%clk 0:00:03.5]} 43... Rb1 {[%clk 0:00:05.6]} 44. Rb4 {[%clk
0:00:03.8]} 44... Rxb4 {[%clk 0:00:04.7]} 45. Kxb4 {[%clk 0:00:04.7]} 45... g4
{[%clk 0:00:04.9]} 46. b6 {[%clk 0:00:05.5]} 46... g3 {[%clk 0:00:05.5]} 47. b7
{[%clk 0:00:06.4]} 47... g2 {[%clk 0:00:06.1]} 48. b8=Q {[%clk 0:00:07.2]} 48...
g1=Q {[%clk 0:00:06.7]} 49. Qe5+ {[%clk 0:00:07.9]} 49... Kh7 {[%clk 0:00:07.1]}
50. Qe8 {[%clk 0:00:07.4]} 50... Qg4+ {[%clk 0:00:06.6]} 51. Kc3 {[%clk
0:00:07.4]} 51... Qg7+ {[%clk 0:00:04.7]} 52. Kd2 {[%clk 0:00:06.8]} 52... Qf6
{[%clk 0:00:05.1]} 53. Qd7 {[%clk 0:00:05]} 53... h5 {[%clk 0:00:04.8]} 54. Qd3+
{[%clk 0:00:04.8]} 54... Kh6 {[%clk 0:00:05.2]} 55. Qd7 {[%clk 0:00:02.9]} 55...
h4 {[%clk 0:00:05.1]} 56. Qc8 {[%clk 0:00:02.4]} 56... Kg5 {[%clk 0:00:04.8]}
57. Qg8+ {[%clk 0:00:02.2]} 57... Kf4 {[%clk 0:00:04.8]} 58. Ke2 {[%clk
0:00:02.3]} 58... Qe5+ {[%clk 0:00:04.2]} 59. Kf1 {[%clk 0:00:02.7]} 59... Qb5+
{[%clk 0:00:03.1]} 60. Kf2 {[%clk 0:00:02.9]} 60... Qc5+ {[%clk 0:00:03.5]} 61.
Kf1 {[%clk 0:00:03.1]} 61... Qc4+ {[%clk 0:00:03.7]} 62. Kf2 {[%clk 0:00:03.5]}
62... Qd4+ {[%clk 0:00:04.2]} 63. Ke2 {[%clk 0:00:03.8]} 63... Qe3+ {[%clk
0:00:04.4]} 64. Kf1 {[%clk 0:00:03.4]} 64... Qf3+ {[%clk 0:00:04.8]} 65. Kg1
{[%clk 0:00:01.9]} 65... Qg3+ {[%clk 0:00:05.7]} 66. Kh1 {[%clk 0:00:02.5]} 0-1

[Event "Late-Titled-Tuesday-Blitz-January-16-2024"]
[Site "Chess.com"]
[Date "2024.01.16"]
[Round "9"]
[White "yaguigor"]
[Black "RobertoJBM"]
[Result "0-1"]
[WhiteElo "2630"]
[BlackElo "2803"]
[TimeControl "180+1"]
[EndTime "15:47:24 PST"]
[Termination "RobertoJBM won on time"]

1. e4 {[%clk 0:03:00.9]} 1... c6 {[%clk 0:02:58.9]} 2. d4 {[%clk 0:02:59.8]}
2... d5 {[%clk 0:02:58.9]} 3. e5 {[%clk 0:03:00.5]} 3... Bf5 {[%clk 0:02:58.2]}
4. Nf3 {[%clk 0:03:00]} 4... e6 {[%clk 0:02:57.4]} 5. Be2 {[%clk 0:02:59.6]}
5... Nd7 {[%clk 0:02:56.1]} 6. O-O {[%clk 0:02:58.8]} 6... Bg6 {[%clk
0:02:54.9]} 7. Nbd2 {[%clk 0:02:54.6]} 7... Nh6 {[%clk 0:02:54.7]} 8. Nb3 {[%clk
0:02:53.9]} 8... Nf5 {[%clk 0:02:54.4]} 9. a4 {[%clk 0:02:53]} 9... Be7 {[%clk
0:02:53.5]} 10. a5 {[%clk 0:02:50.7]} 10... O-O {[%clk 0:02:52.1]} 11. g4 {[%clk
0:02:46.9]} 11... Nh4 {[%clk 0:02:50.1]} 12. Nxh4 {[%clk 0:02:47.1]} 12... Bxh4
{[%clk 0:02:50.9]} 13. f4 {[%clk 0:02:47.2]} 13... f5 {[%clk 0:02:51.1]} 14. g5
{[%clk 0:02:17.8]} 14... h6 {[%clk 0:02:50.2]} 15. gxh6 {[%clk 0:02:15.1]} 15...
gxh6 {[%clk 0:02:49.6]} 16. Kh1 {[%clk 0:02:13]} 16... Kh7 {[%clk 0:02:49.6]}
17. Bh5 {[%clk 0:02:05.5]} 17... Rg8 {[%clk 0:02:47.5]} 18. Be3 {[%clk
0:01:54.7]} 18... Qe8 {[%clk 0:02:38]} 19. Bxg6+ {[%clk 0:01:53.7]} 19... Qxg6
{[%clk 0:02:33.4]} 20. Rg1 {[%clk 0:01:51.8]} 20... Qf7 {[%clk 0:02:33.1]} 21.
Qf3 {[%clk 0:01:50.5]} 21... Be7 {[%clk 0:02:27.3]} 22. c3 {[%clk 0:01:43.2]}
22... Rxg1+ {[%clk 0:02:14.9]} 23. Rxg1 {[%clk 0:01:41.5]} 23... Rg8 {[%clk
0:02:15.8]} 24. Rxg8 {[%clk 0:01:37.1]} 24... Qxg8 {[%clk 0:02:16]} 25. Qh5
{[%clk 0:01:35.6]} 25... Qg6 {[%clk 0:02:12.2]} 26. Qxg6+ {[%clk 0:01:34.3]}
26... Kxg6 {[%clk 0:02:13.1]} 27. Nd2 {[%clk 0:01:29.8]} 27... Bd8 {[%clk
0:02:04.2]} 28. b4 {[%clk 0:01:28.5]} 28... b6 {[%clk 0:02:04.5]} 29. axb6
{[%clk 0:01:27.6]} 29... Nxb6 {[%clk 0:01:55.3]} 30. Nb3 {[%clk 0:01:23.8]}
30... Nc4 {[%clk 0:01:54.9]} 31. Bc1 {[%clk 0:01:22.6]} 31... Bb6 {[%clk
0:01:51]} 32. Kg2 {[%clk 0:01:21]} 32... Kh5 {[%clk 0:01:48.8]} 33. Kg3 {[%clk
0:01:20]} 33... a6 {[%clk 0:01:46.4]} 34. h3 {[%clk 0:01:18]} 34... Kg6 {[%clk
0:01:46.2]} 35. Kf3 {[%clk 0:01:15.9]} 35... Kf7 {[%clk 0:01:38.7]} 36. Nd2
{[%clk 0:01:14.5]} 36... Nxd2+ {[%clk 0:01:35.8]} 37. Bxd2 {[%clk 0:01:13.7]}
37... Ke8 {[%clk 0:01:31.4]} 38. Ke2 {[%clk 0:01:06.5]} 38... Bd8 {[%clk
0:01:28.8]} 39. Be1 {[%clk 0:01:05.4]} 39... Kd7 {[%clk 0:01:28.8]} 40. Kd3
{[%clk 0:01:04.6]} 40... Kc7 {[%clk 0:01:28]} 41. c4 {[%clk 0:01:02.3]} 41...
Kb6 {[%clk 0:01:26.4]} 42. Kc3 {[%clk 0:01:00.2]} 42... Be7 {[%clk 0:01:23.3]}
43. Kb3 {[%clk 0:00:59.9]} 43... h5 {[%clk 0:01:22.4]} 44. Kc3 {[%clk
0:00:57.2]} 44... a5 {[%clk 0:01:19.8]} 45. bxa5+ {[%clk 0:00:55.1]} 45... Kxa5
{[%clk 0:01:19]} 46. Kb3+ {[%clk 0:00:55.2]} 46... Kb6 {[%clk 0:01:15.8]} 47.
cxd5 {[%clk 0:00:49.1]} 47... cxd5 {[%clk 0:01:14.7]} 48. Ka4 {[%clk 0:00:44.6]}
48... Kc6 {[%clk 0:01:07.8]} 49. Kb3 {[%clk 0:00:33.6]} 49... Kb5 {[%clk
0:01:07.4]} 50. Bd2 {[%clk 0:00:27.9]} 50... Bh4 {[%clk 0:01:06.5]} 51. Be3
{[%clk 0:00:27]} 51... Be1 {[%clk 0:01:06.2]} 52. Bc1 {[%clk 0:00:22.4]} 52...
Bf2 {[%clk 0:01:02.4]} 53. Kc3 {[%clk 0:00:20.6]} 53... Ka4 {[%clk 0:01:02.5]}
54. Kd3 {[%clk 0:00:17.5]} 54... Kb3 {[%clk 0:01:01.5]} 55. Bd2 {[%clk
0:00:17.9]} 55... Bh4 {[%clk 0:00:57.9]} 56. Ba5 {[%clk 0:00:17.2]} 56... Be7
{[%clk 0:00:56.4]} 57. Bb6 {[%clk 0:00:15.8]} 57... Ba3 {[%clk 0:00:55.3]} 58.
Bc5 {[%clk 0:00:14.4]} 58... Bc1 {[%clk 0:00:54.4]} 59. Bb6 {[%clk 0:00:10.8]}
59... Bxf4 {[%clk 0:00:53.6]} 60. Bc5 {[%clk 0:00:10.2]} 60... Bc1 {[%clk
0:00:47.8]} 61. Bb6 {[%clk 0:00:09.6]} 61... Ba3 {[%clk 0:00:47.5]} 62. Ba5
{[%clk 0:00:09.5]} 62... Bb4 {[%clk 0:00:45]} 63. Bb6 {[%clk 0:00:09.1]} 63...
Kb2 {[%clk 0:00:42.3]} 64. Bc5 {[%clk 0:00:08.4]} 64... Ba5 {[%clk 0:00:41.9]}
65. Ba7 {[%clk 0:00:07.6]} 65... Kc1 {[%clk 0:00:42]} 66. Ke3 {[%clk 0:00:05.4]}
66... Kc2 {[%clk 0:00:41.9]} 67. Bc5 {[%clk 0:00:04.6]} 67... Bd2+ {[%clk
0:00:40]} 68. Ke2 {[%clk 0:00:04.2]} 68... Kc3 {[%clk 0:00:38.4]} 69. Ba7 {[%clk
0:00:04]} 69... Bg5 {[%clk 0:00:35.9]} 70. Bc5 {[%clk 0:00:03.3]} 70... Kc4
{[%clk 0:00:34.7]} 71. Ba7 {[%clk 0:00:02.2]} 71... Bf4 {[%clk 0:00:34.7]} 72.
Bb6 {[%clk 0:00:01.5]} 72... Bc1 {[%clk 0:00:33.9]} 73. Ba7 {[%clk 0:00:01.4]}
73... Bb2 {[%clk 0:00:33.5]} 0-1

[Event "Late-Titled-Tuesday-Blitz-January-16-2024"]
[Site "Chess.com"]
[Date "2024.01.16"]
[Round "9"]
[White "Angry_Twin"]
[Black "BardArtem"]
[Result "1-0"]
[WhiteElo "2976"]
[BlackElo "2811"]
[TimeControl "180+1"]
[EndTime "15:47:27 PST"]
[Termination "Angry_Twin won on time"]

1. e4 {[%clk 0:03:00.9]} 1... c5 {[%clk 0:02:44.1]} 2. Nf3 {[%clk 0:03:00.8]}
2... d6 {[%clk 0:02:43.3]} 3. Bb5+ {[%clk 0:02:58.7]} 3... Bd7 {[%clk
0:02:40.8]} 4. Bxd7+ {[%clk 0:02:58.4]} 4... Qxd7 {[%clk 0:02:41.7]} 5. c4
{[%clk 0:02:58.7]} 5... Nc6 {[%clk 0:02:39]} 6. d4 {[%clk 0:02:53.7]} 6... cxd4
{[%clk 0:02:39.9]} 7. Nxd4 {[%clk 0:02:54]} 7... Nf6 {[%clk 0:02:38.8]} 8. Nc3
{[%clk 0:02:54.2]} 8... g6 {[%clk 0:02:39]} 9. f3 {[%clk 0:02:54.5]} 9... Bg7
{[%clk 0:02:36.5]} 10. Be3 {[%clk 0:02:54.4]} 10... O-O {[%clk 0:02:37]} 11. Rc1
{[%clk 0:02:48.8]} 11... Rfc8 {[%clk 0:02:31]} 12. b3 {[%clk 0:02:45.8]} 12...
Ne8 {[%clk 0:02:26]} 13. O-O {[%clk 0:02:43.7]} 13... Nc7 {[%clk 0:02:25.8]} 14.
Qd2 {[%clk 0:02:43.9]} 14... Ne6 {[%clk 0:02:23.3]} 15. Nde2 {[%clk 0:02:43.9]}
15... Rf8 {[%clk 0:02:15.3]} 16. Rfd1 {[%clk 0:02:42.4]} 16... f5 {[%clk
0:02:10.4]} 17. c5 {[%clk 0:02:34.8]} 17... Rad8 {[%clk 0:01:46.5]} 18. cxd6
{[%clk 0:02:34]} 18... exd6 {[%clk 0:01:45.3]} 19. exf5 {[%clk 0:02:26.7]} 19...
Rxf5 {[%clk 0:01:40.6]} 20. Ng3 {[%clk 0:02:26.7]} 20... Rff8 {[%clk 0:01:39]}
21. Nd5 {[%clk 0:02:11.8]} 21... Kh8 {[%clk 0:01:31]} 22. Ne4 {[%clk 0:02:08.5]}
22... Ne5 {[%clk 0:01:21.1]} 23. Qe2 {[%clk 0:02:00.5]} 23... Rc8 {[%clk
0:01:19.4]} 24. Bxa7 {[%clk 0:01:50.5]} 24... Rxc1 {[%clk 0:01:07.6]} 25. Rxc1
{[%clk 0:01:50.4]} 25... b6 {[%clk 0:00:58.6]} 26. Bxb6 {[%clk 0:01:34.6]} 26...
Qb7 {[%clk 0:00:58.4]} 27. Rd1 {[%clk 0:01:27.4]} 27... Nf4 {[%clk 0:00:56.5]}
28. Qb5 {[%clk 0:01:13.5]} 28... Nxd5 {[%clk 0:00:40.1]} 29. Rxd5 {[%clk
0:01:12.6]} 29... Qc8 {[%clk 0:00:16.8]} 30. Be3 {[%clk 0:00:59.2]} 30... Qc2
{[%clk 0:00:14.8]} 31. Rd2 {[%clk 0:00:58.8]} 31... Qc1+ {[%clk 0:00:09.2]} 32.
Qf1 {[%clk 0:00:58.4]} 32... Qc6 {[%clk 0:00:09.8]} 33. Rxd6 {[%clk 0:00:55]}
33... Qc2 {[%clk 0:00:09.1]} 34. Rd2 {[%clk 0:00:54.2]} 34... Qc7 {[%clk
0:00:09.6]} 35. Qe2 {[%clk 0:00:54.3]} 35... Qc1+ {[%clk 0:00:05.7]} 36. Rd1
{[%clk 0:00:52.5]} 36... Qc8 {[%clk 0:00:06.3]} 37. h3 {[%clk 0:00:52.5]} 37...
Nxf3+ {[%clk 0:00:05.8]} 38. gxf3 {[%clk 0:00:50.7]} 38... Qxh3 {[%clk
0:00:06.5]} 39. Qg2 {[%clk 0:00:47.1]} 39... Qh5 {[%clk 0:00:06.6]} 40. Qg4
{[%clk 0:00:40.4]} 40... Qb5 {[%clk 0:00:05]} 41. Rd2 {[%clk 0:00:36.7]} 41...
Qa5 {[%clk 0:00:02.3]} 42. Kg2 {[%clk 0:00:36]} 42... Qa6 {[%clk 0:00:02.8]} 43.
Nc5 {[%clk 0:00:32.3]} 43... Qc6 {[%clk 0:00:02.1]} 44. Ne6 {[%clk 0:00:32.1]}
44... Re8 {[%clk 0:00:02]} 45. Rd8 {[%clk 0:00:26]} 45... Rxd8 {[%clk
0:00:01.7]} 46. Nxd8 {[%clk 0:00:26.9]} 46... Qc2+ {[%clk 0:00:02.1]} 47. Bf2
{[%clk 0:00:27.5]} 47... Qxa2 {[%clk 0:00:01.4]} 48. Nf7+ {[%clk 0:00:22.9]}
48... Kg8 {[%clk 0:00:01.9]} 49. Qe6 {[%clk 0:00:20.1]} 49... h6 {[%clk
0:00:02.2]} 50. Nxh6+ {[%clk 0:00:20]} 50... Kh7 {[%clk 0:00:03]} 51. Ng4 {[%clk
0:00:20.7]} 51... Qb2 {[%clk 0:00:02.2]} 52. Qd5 {[%clk 0:00:17.5]} 52... Qc3
{[%clk 0:00:02]} 53. Be3 {[%clk 0:00:16.5]} 53... Qb2+ {[%clk 0:00:02]} 54. Kg3
{[%clk 0:00:16.8]} 54... Qc3 {[%clk 0:00:02.3]} 55. Qe6 {[%clk 0:00:15.8]} 55...
Qe1+ {[%clk 0:00:02.5]} 56. Kg2 {[%clk 0:00:15.1]} 56... Qe2+ {[%clk 0:00:03.1]}
57. Nf2 {[%clk 0:00:15.5]} 57... Qb2 {[%clk 0:00:02.2]} 58. Qd5 {[%clk
0:00:14.8]} 58... Qc2 {[%clk 0:00:02]} 59. Qc4 {[%clk 0:00:13.3]} 59... Qf5
{[%clk 0:00:02]} 60. Qh4+ {[%clk 0:00:12.7]} 60... Kg8 {[%clk 0:00:02]} 61. Qg4
{[%clk 0:00:12.7]} 61... Qf7 {[%clk 0:00:02.2]} 62. Qc4 {[%clk 0:00:12.7]} 62...
Kf8 {[%clk 0:00:01.6]} 63. Qxf7+ {[%clk 0:00:13.1]} 63... Kxf7 {[%clk
0:00:02.5]} 64. Ne4 {[%clk 0:00:13.7]} 64... Ke6 {[%clk 0:00:02.7]} 65. Kg3
{[%clk 0:00:14.2]} 65... Kd5 {[%clk 0:00:03.3]} 66. Kg4 {[%clk 0:00:14.5]} 1-0

[Event "Late-Titled-Tuesday-Blitz-January-16-2024"]
[Site "Chess.com"]
[Date "2024.01.16"]
[Round "9"]
[White "ozates"]
[Black "Byniolus"]
[Result "0-1"]
[WhiteElo "2598"]
[BlackElo "2765"]
[TimeControl "180+1"]
[EndTime "15:47:32 PST"]
[Termination "Byniolus won by resignation"]

1. e4 {[%clk 0:03:00.9]} 1... d5 {[%clk 0:02:58.1]} 2. exd5 {[%clk 0:03:00.3]}
2... Nf6 {[%clk 0:02:58.7]} 3. Nf3 {[%clk 0:02:58.2]} 3... Nxd5 {[%clk 0:02:59]}
4. d4 {[%clk 0:02:57]} 4... Bg4 {[%clk 0:02:58.7]} 5. c4 {[%clk 0:02:55.9]} 5...
Nb6 {[%clk 0:02:57.8]} 6. c5 {[%clk 0:02:56.4]} 6... N6d7 {[%clk 0:02:55.5]} 7.
Qb3 {[%clk 0:02:52.2]} 7... Nc6 {[%clk 0:02:51.1]} 8. Be3 {[%clk 0:02:27.3]}
8... Bxf3 {[%clk 0:02:44.5]} 9. gxf3 {[%clk 0:02:28]} 9... e5 {[%clk 0:02:31]}
10. d5 {[%clk 0:02:23.5]} 10... Nd4 {[%clk 0:02:28.9]} 11. Bxd4 {[%clk 0:02:18]}
11... exd4 {[%clk 0:02:29.8]} 12. c6 {[%clk 0:02:04.9]} 12... bxc6 {[%clk
0:02:25.9]} 13. dxc6 {[%clk 0:02:05]} 13... Nc5 {[%clk 0:02:15.9]} 14. Qc4
{[%clk 0:01:55.1]} 14... Bd6 {[%clk 0:02:03]} 15. Nd2 {[%clk 0:01:47.8]} 15...
Qe7+ {[%clk 0:01:49]} 16. Kd1 {[%clk 0:01:41.8]} 16... O-O {[%clk 0:01:46.7]}
17. Bd3 {[%clk 0:01:39.1]} 17... Rab8 {[%clk 0:01:36.5]} 18. b3 {[%clk
0:01:35.1]} 18... Rb4 {[%clk 0:01:24.7]} 19. Qxb4 {[%clk 0:01:24.9]} 19... Nxd3
{[%clk 0:01:25]} 20. Qxd4 {[%clk 0:01:25.6]} 20... Be5 {[%clk 0:01:13.2]} 21.
Qxd3 {[%clk 0:01:25.9]} 21... Bxa1 {[%clk 0:01:07.2]} 22. Re1 {[%clk 0:01:18.8]}
22... Qf6 {[%clk 0:01:04.1]} 23. Re4 {[%clk 0:01:10.3]} 23... Rd8 {[%clk
0:00:50.9]} 24. Qe3 {[%clk 0:01:10.1]} 24... Qxc6 {[%clk 0:00:42.3]} 25. Ke2
{[%clk 0:01:10.2]} 25... g6 {[%clk 0:00:33.8]} 26. Nc4 {[%clk 0:01:08.7]} 26...
Bf6 {[%clk 0:00:25.6]} 27. Kf1 {[%clk 0:00:51.3]} 27... Kg7 {[%clk 0:00:24.2]}
28. Kg2 {[%clk 0:00:50.9]} 28... Rd5 {[%clk 0:00:20.7]} 29. h4 {[%clk
0:00:45.3]} 29... Rh5 {[%clk 0:00:19.2]} 30. Ne5 {[%clk 0:00:38.3]} 30... Qd5
{[%clk 0:00:15.3]} 31. Ng4 {[%clk 0:00:35.4]} 31... Ba1 {[%clk 0:00:10.3]} 32.
Qxa7 {[%clk 0:00:26]} 32... Rxh4 {[%clk 0:00:05.4]} 33. Ne3 {[%clk 0:00:10.8]}
33... Qh5 {[%clk 0:00:02.9]} 34. Rxh4 {[%clk 0:00:10.6]} 34... Qxh4 {[%clk
0:00:03.8]} 35. Qxc7 {[%clk 0:00:10.4]} 35... Qg5+ {[%clk 0:00:04.3]} 36. Qg3
{[%clk 0:00:10.5]} 36... Qf6 {[%clk 0:00:04.1]} 37. a4 {[%clk 0:00:10.3]} 37...
h5 {[%clk 0:00:04.1]} 38. f4 {[%clk 0:00:09.2]} 38... Bd4 {[%clk 0:00:03.8]} 39.
Qg5 {[%clk 0:00:08.5]} 39... Qc6+ {[%clk 0:00:03.9]} 40. Kh2 {[%clk 0:00:06.5]}
40... Bf6 {[%clk 0:00:03.7]} 41. Nf5+ {[%clk 0:00:06.7]} 41... Kg8 {[%clk
0:00:02.3]} 42. Ne7+ {[%clk 0:00:06.8]} 42... Bxe7 {[%clk 0:00:02]} 43. Qxe7
{[%clk 0:00:07.7]} 43... Qf3 {[%clk 0:00:02.6]} 44. Qh4 {[%clk 0:00:08.3]} 44...
Qxb3 {[%clk 0:00:02.5]} 45. a5 {[%clk 0:00:08.6]} 45... Qa2 {[%clk 0:00:03.1]}
46. Qd8+ {[%clk 0:00:08.5]} 46... Kg7 {[%clk 0:00:03.1]} 47. Qb6 {[%clk
0:00:09.1]} 47... h4 {[%clk 0:00:02.4]} 48. a6 {[%clk 0:00:09.2]} 48... Qa3
{[%clk 0:00:02.5]} 49. a7 {[%clk 0:00:09.1]} 49... h3 {[%clk 0:00:02.8]} 50.
Qd4+ {[%clk 0:00:08.9]} 50... Kh7 {[%clk 0:00:02.8]} 51. Qd7 {[%clk 0:00:08]}
51... Kg7 {[%clk 0:00:02.4]} 52. Qd4+ {[%clk 0:00:07.7]} 52... Kh7 {[%clk
0:00:03]} 53. Qd7 {[%clk 0:00:08]} 53... Kg7 {[%clk 0:00:03.5]} 54. Qc7 {[%clk
0:00:04.8]} 54... Qf3 {[%clk 0:00:03.2]} 55. Qe5+ {[%clk 0:00:04.8]} 55... Kh7
{[%clk 0:00:03.3]} 56. a8=Q {[%clk 0:00:03]} 56... Qxa8 {[%clk 0:00:03]} 57.
Kxh3 {[%clk 0:00:03.9]} 57... Qf3+ {[%clk 0:00:03.2]} 58. Kh2 {[%clk 0:00:04.4]}
58... Qxf2+ {[%clk 0:00:04.1]} 59. Kh3 {[%clk 0:00:05.2]} 59... Qf3+ {[%clk
0:00:04.7]} 60. Kh2 {[%clk 0:00:05.8]} 60... Qh5+ {[%clk 0:00:04.9]} 61. Qxh5+
{[%clk 0:00:05]} 61... gxh5 {[%clk 0:00:05.8]} 62. Kg3 {[%clk 0:00:05.9]} 62...
Kh6 {[%clk 0:00:03.4]} 63. Kh4 {[%clk 0:00:06.1]} 63... Kg6 {[%clk 0:00:03.8]}
64. f5+ {[%clk 0:00:04.5]} 64... Kxf5 {[%clk 0:00:04.7]} 65. Kxh5 {[%clk
0:00:04.5]} 65... Ke4 {[%clk 0:00:05.4]} 66. Kg4 {[%clk 0:00:05.2]} 66... f5+
{[%clk 0:00:05.3]} 0-1